fUST/lending_fUST_20250326
["ID","MTS","AMOUNT","RATE_DAILY","PERIOD"]
[356704079,1742992146686,-500.0,0.00011688,2]
[356704080,1742992146707,-500.0,0.00011688,2]
[356704081,1742992146730,-186.733833,0.00011688,2]
[356704082,1742992146750,-500.0,0.00011688,2]
[356704083,1742992146772,-520.83,0.00011688,2]
[356704084,1742992146793,-12263.06162339,0.00011689,2]
[356704086,1742992154404,-12636.93837661,0.00011689,2]
[356704087,1742992154427,-622.2,0.00011737,2]
[356704088,1742992154448,-152.0,0.00011774,2]
[356704089,1742992154474,-215.69823755,0.00011778,2]
[356704090,1742992154495,-645.2214,0.00011792,2]
[356704091,1742992154516,-500.0,0.00011962,2]
[356704092,1742992154537,-500.0,0.00011962,2]
[356704093,1742992154558,-500.0,0.00012236,2]
[356704094,1742992154580,-500.0,0.00012236,2]
[356704095,1742992154601,-520.83,0.00012279,2]
[356704096,1742992154621,-506.16623779,0.00012327,2]
[356704097,1742992154642,-518.34452381,0.00012327,2]
[356704098,1742992154662,-500.0,0.00012327,2]
[356704099,1742992154682,-508.97582185,0.00012327,2]
[356704100,1742992154703,-500.0,0.00012327,2]
[356704101,1742992154724,-500.0,0.00012327,2]
[356704102,1742992154745,-500.0,0.00012327,2]
[356704103,1742992154766,-500.0,0.00012327,2]
[356704104,1742992154787,-506.73349201,0.00012327,2]
[356704105,1742992154812,-511.10964734,0.00012327,2]
[356704106,1742992154835,-500.0,0.00012327,2]
[356704107,1742992154859,-500.0,0.00012327,2]
[356704108,1742992154881,-511.85746447,0.00012327,2]
[356704109,1742992154903,-498.10567685,0.00012327,2]
[356704110,1742992161135,-1.89432315,0.00012327,2]
[356704111,1742992161157,-500.0,0.00012327,2]
[356704112,1742992161179,-500.0,0.0001251,2]
[356704113,1742992161201,-500.0,0.0001251,2]
[356704114,1742992161224,-500.0,0.00012601,2]
[356704115,1742992161245,-521.77370324,0.00012601,2]
[356704116,1742992161267,-334.09,0.00012784,2]
[356704117,1742992161290,-500.0,0.00012784,2]
[356704118,1742992161324,-520.83,0.00012874,2]
[356704119,1742992161346,-511.83050161,0.00012875,2]
[356704120,1742992161367,-3809.95685245,0.000129,2]
[356704121,1742992161387,-500.0,0.00013043,2]
[356704122,1742992161410,-500.0,0.00013052,2]
[356704123,1742992161431,-500.0,0.00013052,2]
[356704124,1742992161454,-500.0,0.00013058,2]
[356704125,1742992161475,-500.84652687,0.00013299,2]
[356704126,1742992161496,-500.0,0.00013299,2]
[356704127,1742992161517,-520.70022056,0.00013299,2]
[356704128,1742992161537,-500.0,0.00013299,2]
[356704129,1742992161557,-500.0,0.00013299,2]
[356704130,1742992161578,-528.15,0.00013299,2]
[356704131,1742992161599,-500.0,0.00013299,2]
[356704132,1742992161620,-1632.19,0.00013299,2]
[356704133,1742992161641,-500.0,0.00013299,2]
[356704134,1742992161663,-500.0,0.00013299,2]
[356704135,1742992161686,-500.0,0.00013299,2]
[356704136,1742992161707,-500.0,0.00013299,2]
[356704137,1742992161726,-513.5837248,0.00013299,2]
[356704138,1742992161746,-500.0,0.00013299,2]
[356704139,1742992161767,-500.0,0.00013299,2]
[356704140,1742992161787,-182.37171798,0.00013299,2]
[356704141,1742992161812,-500.0,0.00013299,2]
[356704142,1742992161833,-433.86899902,0.00013299,2]
[356704143,1742992161853,-500.0,0.00013299,2]
[356704144,1742992161873,-500.0,0.00013299,2]
[356704145,1742992161895,-500.0,0.00013299,2]
[356704146,1742992161916,-511.87091639,0.00013299,2]
[356704147,1742992161937,-500.0,0.00013299,2]
[356704148,1742992161973,-500.0,0.00013299,2]
[356704149,1742992161993,-379.12560819,0.00013299,2]
[356704150,1742992162015,-2210.47734261,0.000133,2]
[356704151,1742992162037,-2210.47734253,0.000133,2]
[356704152,1742992162058,-500.0,0.00013332,2]
[356704153,1742992162085,-520.83,0.00013422,2]
[356704154,1742992162107,-230.94,0.00013573,2]
[356704155,1742992162128,-1632.19,0.00013573,2]
[356704156,1742992162150,-500.0,0.00013573,2]
[356704157,1742992162172,-500.0,0.00013573,2]
[356704158,1742992162192,-518.23,0.00013573,2]
[356704159,1742992162215,-500.0,0.00013573,2]
[356704160,1742992162236,-500.0,0.00013573,2]
[356704161,1742992162257,-500.0,0.00013573,2]
[356704162,1742992162278,-500.0,0.00013573,2]
[356704163,1742992162298,-500.0,0.00013573,2]
[356704164,1742992162318,-584.32644765,0.00013599,2]
[356704165,1742992162338,-500.0,0.00013606,2]
[356704166,1742992162358,-500.0,0.00013673,2]
[356704167,1742992162378,-500.0,0.00013673,2]
[356704168,1742992162398,-500.0,0.00013673,2]
[356704169,1742992162417,-500.0,0.00013673,2]
[356704170,1742992162437,-500.0,0.00013673,2]
[356704171,1742992162457,-500.0,0.00013673,2]
[356704172,1742992162477,-645.15845823,0.00013673,2]
[356704173,1742992162496,-500.0,0.00013673,2]
[356704174,1742992162516,-500.0,0.00013673,2]
[356704175,1742992162536,-500.0,0.00013673,2]
[356704176,1742992162556,-500.0,0.00013673,2]
[356704177,1742992162576,-500.0,0.00013673,2]
[356704178,1742992162598,-520.83,0.00013698,2]
[356704179,1742992162619,-520.83,0.00013698,2]
[356704180,1742992162639,-237.371405,0.00013699,2]
[356704181,1742992162660,-500.0,0.00013699,2]
[356704182,1742992162681,-500.0,0.00013699,2]
[356704183,1742992162702,-152.01438549,0.00013699,2]
[356704216,1742992232809,-500.0,0.00011688,2]
[356704217,1742992232819,-116.65,0.00011688,2]
[356704223,1742992240390,-351.106,0.00011688,2]
[356704249,1742992247482,-1280.094,0.00011688,2]
[356704250,1742992247491,-500.0,0.00011688,2]
[356704251,1742992247501,-500.0,0.00011962,2]
[356704252,1742992247511,-1240.04855785,0.00011962,2]
[356704253,1742992247523,-360.24999978,0.00011962,2]
[356704339,1742993204430,-223.22417693,0.00010373,2]
[356704340,1742993223882,-300.0,0.00010372,2]
[356704341,1742993227870,-403.05806169,0.00010269,2]
[356704342,1742993231138,-569.70462361,0.00010373,2]
[356704343,1742993240086,-679.44549875,0.00010373,2]
[356704344,1742993247229,-9328.19133266,0.00010373,2]
[356704348,1742993363123,-300.0,0.00010372,2]
[356704349,1742993363144,-6279.41069291,0.00010373,2]
[356704350,1742993367077,-2320.96149414,0.00010373,2]
[356704351,1742993370226,-4026.0938925,0.00010373,2]
[356704352,1742993370249,-197.3530179,0.00010911,2]
[356704353,1742993370272,-500.0,0.00011273,2]
[356704354,1742993370294,-500.0,0.00011273,2]
[356704355,1742993370316,-514.69969596,0.00011273,2]
[356704356,1742993370337,-503.79501287,0.00011273,2]
[356704357,1742993370359,-500.0,0.00011273,2]
[356704358,1742993370380,-500.0,0.00011273,2]
[356704359,1742993370400,-500.0,0.00011273,2]
[356704360,1742993370426,-151.0,0.00011284,2]
[356704361,1742993370446,-609.55102918,0.00011284,2]
[356704362,1742993370468,-600.0,0.00011284,2]
[356704363,1742993370489,-258.16253251,0.00011284,2]
[356704364,1742993370509,-214.57187793,0.00011289,2]
[356704365,1742993370531,-500.0,0.00011289,2]
[356704366,1742993370553,-500.0,0.00011289,2]
[356704367,1742993370575,-461.23280402,0.00011289,2]
[356704368,1742993370594,-500.0,0.0001129,2]
[356704369,1742993370614,-500.0,0.0001129,2]
[356704370,1742993370635,-518.87135005,0.0001129,2]
[356704371,1742993370655,-500.0,0.0001129,2]
[356704372,1742993370676,-500.0,0.0001129,2]
[356704373,1742993370698,-500.0,0.0001129,2]
[356704374,1742993370718,-512.06182666,0.0001129,2]
[356704375,1742993370739,-500.0,0.0001129,2]
[356704376,1742993370760,-500.0,0.0001129,2]
[356704377,1742993370781,-500.0,0.0001129,2]
[356704378,1742993370803,-2467.72,0.0001129,2]
[356704379,1742993370825,-259.65,0.0001129,2]
[356704380,1742993370846,-500.0,0.0001129,2]
[356704381,1742993370868,-500.0,0.0001129,2]
[356704382,1742993370889,-500.0,0.0001129,2]
[356704383,1742993370911,-510.0528051,0.0001129,2]
[356704384,1742993370933,-208.15931692,0.0001129,2]
[356704385,1742993370955,-522.09695031,0.0001129,2]
[356704386,1742993370976,-799.34,0.0001129,2]
[356704387,1742993370998,-500.0,0.0001129,2]
[356704388,1742993371019,-524.11982446,0.0001129,2]
[356704389,1742993371040,-500.0,0.0001129,2]
[356704390,1742993371061,-500.0,0.0001129,2]
[356704391,1742993371082,-526.738679,0.0001129,2]
[356704392,1742993371103,-500.0,0.0001129,2]
[356704393,1742993371125,-500.0,0.0001129,2]
[356704394,1742993371146,-500.0,0.0001129,2]
[356704395,1742993371167,-647.75,0.0001129,2]
[356704396,1742993371193,-500.0,0.0001129,2]
[356704397,1742993371214,-500.0,0.0001129,2]
[356704398,1742993371236,-500.0,0.0001129,2]
[356704399,1742993371256,-156.8,0.0001129,2]
[356704400,1742993371279,-500.0,0.0001129,2]
[356704401,1742993371299,-500.0,0.0001129,2]
[356704402,1742993371320,-24900.0,0.00011291,2]
[356704403,1742993371342,-622.2,0.00011339,2]
[356704404,1742993371366,-645.2214,0.00011394,2]
[356704405,1742993371387,-420.0,0.00011404,2]
[356704406,1742993371409,-669.0945918,0.00011449,2]
[356704407,1742993371431,-693.8510917,0.00011504,2]
[356704408,1742993371464,-719.52358209,0.00011559,2]
[356704409,1742993371487,-2467.72,0.00011564,2]
[356704410,1742993371510,-500.0,0.00011564,2]
[356704411,1742993371532,-799.34,0.00011564,2]
[356704412,1742993371554,-500.0,0.00011564,2]
[356704413,1742993371742,-500.0,0.00011564,2]
[356704414,1742993371770,-500.0,0.00011564,2]
[356704415,1742993371792,-352.83,0.00011564,2]
[356704416,1742993371814,-500.0,0.00011564,2]
[356704417,1742993371834,-500.0,0.00011564,2]
[356704418,1742993371861,-254.25905366,0.00011564,2]
[356704419,1742993371882,-5000.0,0.00011588,2]
[356704420,1742993371903,-159.62974499,0.00011613,2]
[356704421,1742993371925,-553.02371991,0.00011613,2]
[356704422,1742993371946,-746.14595463,0.00011614,2]
[356704423,1742993371968,-250.0,0.00011625,2]
[356704424,1742993371989,-773.75335495,0.00011669,2]
[356704425,1742993372012,-500.0,0.00011687,2]
[356704426,1742993372033,-430.13185431,0.00011688,2]
[356704427,1742993372054,-500.0,0.00011688,2]
[356704428,1742993372074,-591.6,0.00011688,2]
[356704429,1742993372095,-802.38222908,0.00011724,2]
[356704430,1742993372117,-832.07037156,0.00011779,2]
[356704431,1742993372139,-156.587,0.00011832,2]
[356704432,1742993372160,-862.8569753,0.00011834,2]
[356704433,1742993372181,-2467.72,0.00011838,2]
[356704434,1742993372206,-573.02076039,0.00011838,2]
[356704435,1742993372228,-799.34,0.00011838,2]
[356704436,1742993372250,-500.0,0.00011838,2]
[356704437,1742993372271,-500.0,0.00011838,2]
[356704438,1742993372293,-500.0,0.00011838,2]
[356704439,1742993372314,-500.0,0.00011838,2]
[356704440,1742993372336,-500.0,0.00011838,2]
[356704441,1742993372357,-894.78268339,0.00011889,2]
[356704442,1742993372379,-927.88964268,0.00011944,2]
[356704443,1742993372400,-962.22155946,0.00011999,2]
[356704444,1742993372420,-300.56811144,0.00012,3]
[356704445,1742993372441,-997.82375716,0.00012054,2]
[356704446,1742993372462,-1034.74323617,0.00012109,2]
[356704447,1742993372482,-2467.72,0.00012112,2]
[356704448,1742993372503,-799.34,0.00012112,2]
[356704449,1742993372525,-500.0,0.00012112,2]
[356704450,1742993372545,-284.23,0.00012112,2]
[356704451,1742993372568,-500.0,0.00012112,2]
[356704452,1742993372590,-500.0,0.00012112,2]
[356704453,1742993372613,-500.0,0.00012112,2]
[356704454,1742993372633,-1073.02873591,0.00012164,2]
[356704455,1742993372655,-500.0,0.00012234,2]
[356704456,1742993372677,-1040.19901632,0.00012289,2]
[356704457,1742993373111,-669.32890674,0.00012289,2]
[356704458,1742993373132,-1321.26436303,0.000123,2]
[356704459,1742993373153,-1014.97887372,0.00012361,2]
[356704460,1742993373174,-162.380719,0.0001238,2]
[356704461,1742993373199,-2467.72,0.00012386,2]
[356704462,1742993373220,-799.34,0.00012386,2]
[356704463,1742993373243,-350.69961445,0.00012386,2]
[356704464,1742993373268,-500.0,0.00012386,2]
[356704465,1742993373290,-500.0,0.00012386,2]
[356704466,1742993373312,-500.0,0.00012386,2]
[356704467,1742993373335,-299.999998,0.00012389,2]
[356704468,1742993373358,-587.0,0.0001254,2]
[356704469,1742993373380,-2467.72,0.0001266,2]
[356704470,1742993373402,-799.34,0.0001266,2]
[356704471,1742993373424,-500.0,0.0001266,2]
[356704472,1742993373446,-500.0,0.0001266,2]
[356704473,1742993373468,-500.0,0.00012782,2]
[356704474,1742993373489,-306.83181406,0.00012928,2]
[356704475,1742993373510,-2467.72,0.00012934,2]
[356704476,1742993373531,-799.34,0.00012934,2]
[356704477,1742993373553,-151.0,0.00012934,2]
[356704478,1742993373575,-500.0,0.00012934,2]
[356704479,1742993373596,-151.0,0.00012934,2]
[356704480,1742993373617,-500.0,0.00012934,2]
[356704481,1742993373638,-2467.72,0.00013208,2]
[356704482,1742993373658,-799.34,0.00013208,2]
[356704483,1742993373680,-500.0,0.00013208,2]
[356704484,1742993373702,-329.59,0.00013208,2]
[356704485,1742993373723,-182.271159,0.00013208,2]
[356704486,1742993373745,-151.0,0.00013208,2]
[356704487,1742993373767,-3188.1332399,0.000133,2]
[356704488,1742993373790,-1019.34252609,0.000133,2]
[356704516,1742993440823,-600.0,0.00011284,2]
[356704517,1742993440832,-1618.15027819,0.0001129,2]
[356704518,1742993440877,-282.36972181,0.0001129,2]
[356704519,1742993440887,-654.26527289,0.00011339,2]
[356704520,1742993440897,-104.48020481,0.00011564,2]
[356704526,1742993443816,-1796.03979519,0.00011564,2]
[356704527,1742993443826,-1900.52,0.00011838,2]
[356704528,1742993443835,-1900.52,0.00012112,2]
[356704529,1742993443845,-1900.52,0.00012386,2]
[356704530,1742993443855,-1900.52,0.0001266,2]
[356704531,1742993443864,-1900.52,0.00012934,2]
[356704532,1742993443873,-1900.52,0.00013208,2]
[356704533,1742993443883,-300.0,0.00013481,2]
[356704534,1742993443892,-799.34,0.00013482,2]
[356704535,1742993443902,-500.0,0.00013482,2]
[356704536,1742993443911,-1900.52,0.00013482,2]
[356704537,1742993443921,-3833.60701091,0.00013599,2]
[356704538,1742993443931,-500.0,0.00013672,2]
[356704539,1742993443940,-506.08151912,0.00013673,2]
[356704540,1742993443949,-500.0,0.00013673,2]
[356704541,1742993443959,-503.52736579,0.00013673,2]
[356704542,1742993443968,-258.7718197,0.00013673,2]
[356704543,1742993443977,-500.0,0.00013673,2]
[356704544,1742993443986,-500.0,0.00013673,2]
[356704545,1742993443995,-500.0,0.00013673,2]
[356704546,1742993444005,-500.0,0.00013673,2]
[356704547,1742993444015,-500.0,0.00013673,2]
[356704548,1742993444024,-500.0,0.00013673,2]
[356704549,1742993444034,-500.0,0.00013673,2]
[356704550,1742993444043,-500.0,0.00013673,2]
[356704551,1742993444052,-507.03701396,0.00013673,2]
[356704552,1742993444062,-500.0,0.00013673,2]
[356704553,1742993444072,-500.0,0.00013673,2]
[356704554,1742993444082,-500.0,0.00013673,2]
[356704555,1742993444092,-500.0,0.00013673,2]
[356704556,1742993444101,-500.0,0.00013673,2]
[356704557,1742993444110,-500.0,0.00013673,2]
[356704558,1742993444120,-500.0,0.00013673,2]
[356704559,1742993444129,-1000.0,0.00013698,2]
[356704560,1742993444139,-1000.0,0.00013698,2]
[356704561,1742993444148,-1012.0163938,0.00013698,2]
[356704562,1742993444158,-151.0,0.00013698,2]
[356704563,1742993444168,-151.0,0.00013698,2]
[356704564,1742993444178,-151.0,0.00013698,2]
[356704565,1742993444187,-500.0,0.00013698,2]
[356704566,1742993444196,-500.0,0.00013698,2]
[356704567,1742993444209,-500.0,0.00013698,2]
[356704568,1742993444219,-500.0,0.00013698,2]
[356704569,1742993444228,-500.0,0.00013698,2]
[356704570,1742993444237,-387.11660394,0.00013698,2]
[356704571,1742993444248,-1432.598269,0.00013699,2]
[356704572,1742993444259,-2633.2969143,0.00013699,2]
[356704573,1742993444268,-151.0,0.00013699,2]
[356704574,1742993444278,-258.75172,0.00013699,2]
[356704575,1742993444288,-551.0670356,0.00013699,2]
[356704576,1742993444298,-151.0,0.00013699,2]
[356704577,1742993444308,-199.321274,0.00013699,2]
[356704578,1742993444317,-151.0,0.00013699,2]
[356704579,1742993444327,-151.0,0.00013699,2]
[356704580,1742993444336,-151.0,0.00013699,2]
[356704581,1742993444346,-151.0,0.00013699,2]
[356704582,1742993444355,-159.425195,0.00013699,2]
[356704583,1742993444365,-151.0,0.00013699,2]
[356704584,1742993444375,-151.0,0.00013699,2]
[356704585,1742993444384,-151.0,0.00013699,2]
[356704586,1742993444393,-151.0,0.00013699,2]
[356704587,1742993444402,-151.0,0.00013699,2]
[356704588,1742993444412,-151.0,0.00013699,2]
[356704589,1742993444421,-151.0,0.00013699,2]
[356704590,1742993444430,-151.0,0.00013699,2]
[356704591,1742993444440,-151.0,0.00013699,2]
[356704592,1742993444449,-151.0,0.00013699,2]
[356704593,1742993444458,-151.0,0.00013699,2]
[356704594,1742993444468,-151.0,0.00013699,2]
[356704595,1742993444477,-151.0,0.00013699,2]
[356704596,1742993444487,-151.0,0.00013699,2]
[356704597,1742993444497,-151.0,0.00013699,2]
[356704598,1742993444506,-189.9811,0.00013699,2]
[356704599,1742993444516,-151.0,0.00013699,2]
[356704600,1742993444526,-151.0,0.00013699,2]
[356704601,1742993444535,-500.0,0.00013699,2]
[356704602,1742993444544,-1057.33685519,0.00013699,2]
[356704603,1742993444554,-291.56021016,0.00013699,2]
[356704604,1742993444563,-1057.33685519,0.00013699,2]
[356704605,1742993444573,-1057.33685519,0.00013699,2]
[356704606,1742993444582,-1057.33685519,0.00013699,2]
[356704607,1742993444591,-1057.33685519,0.00013699,2]
[356704608,1742993444602,-1057.33685519,0.00013699,2]
[356704609,1742993444611,-1057.33685519,0.00013699,2]
[356704610,1742993444621,-1057.33685519,0.00013699,2]
[356704611,1742993444630,-1057.33685519,0.00013699,2]
[356704612,1742993444640,-1057.33685519,0.00013699,2]
[356704613,1742993444649,-1057.33685519,0.00013699,2]
[356704614,1742993444659,-1057.33685519,0.00013699,2]
[356704615,1742993444669,-1057.33685519,0.00013699,2]
[356704616,1742993444678,-1057.33685519,0.00013699,2]
[356704617,1742993444688,-1057.33685519,0.00013699,2]
[356704618,1742993444698,-1057.33685519,0.00013699,2]
[356704619,1742993444707,-1057.33685519,0.00013699,2]
[356704620,1742993444717,-1057.33685519,0.00013699,2]
[356704621,1742993444726,-1057.33685519,0.00013699,2]
[356704622,1742993444736,-1057.33685519,0.00013699,2]
[356704623,1742993444745,-1057.33685519,0.00013699,2]
[356704624,1742993444755,-1057.33685519,0.00013699,2]
[356704625,1742993444763,-1057.33685519,0.00013699,2]
[356704626,1742993444773,-1057.33685519,0.00013699,2]
[356704627,1742993444782,-1057.33685519,0.00013699,2]
[356704628,1742993444791,-1057.33685519,0.00013699,2]
[356704629,1742993444800,-1057.33685519,0.00013699,2]
[356704630,1742993444810,-1057.33685519,0.00013699,2]
[356704631,1742993444819,-1057.33685519,0.00013699,2]
[356704632,1742993444829,-1057.33685519,0.00013699,2]
[356704633,1742993444838,-1057.33685519,0.00013699,2]
[356704634,1742993444848,-1057.33685519,0.00013699,2]
[356704635,1742993444857,-1057.33685519,0.00013699,2]
[356704636,1742993444867,-1057.33685519,0.00013699,2]
[356704637,1742993444876,-1057.33685519,0.00013699,2]
[356704638,1742993444886,-1057.33685519,0.00013699,2]
[356704639,1742993444896,-1057.33685519,0.00013699,2]
[356704640,1742993444905,-1057.33685519,0.00013699,2]
[356704641,1742993444914,-1057.33685519,0.00013699,2]
[356704642,1742993444924,-1057.33685519,0.00013699,2]
[356704643,1742993444933,-1057.33685519,0.00013699,2]
[356704644,1742993444942,-1057.33685519,0.00013699,2]
[356704645,1742993444951,-1057.33685519,0.00013699,2]
[356704646,1742993444961,-1057.33685519,0.00013699,2]
[356704647,1742993444970,-1057.33685519,0.00013699,2]
[356704648,1742993444981,-1057.33685519,0.00013699,2]
[356704649,1742993444990,-1057.33685519,0.00013699,2]
[356704650,1742993445000,-1057.33685519,0.00013699,2]
[356704651,1742993445010,-1057.33685519,0.00013699,2]
[356704652,1742993445019,-1057.33685519,0.00013699,2]
[356704653,1742993445028,-1057.33685519,0.00013699,2]
[356704654,1742993445037,-1057.33685519,0.00013699,2]
[356704655,1742993445047,-151.0,0.00013707,2]
[356704656,1742993445056,-151.0,0.00013707,2]
[356704657,1742993445065,-151.0,0.00013707,2]
[356704658,1742993445075,-151.0,0.00013707,2]
[356704659,1742993445084,-151.0,0.00013707,2]
[356704660,1742993445094,-2231.49562932,0.00013707,2]
[356704661,1742993445104,-799.34,0.00013756,2]
[356704662,1742993445114,-500.0,0.00013756,2]
[356704663,1742993445123,-1900.52,0.00013756,2]
[356704664,1742993445132,-1709.52792305,0.00013825,2]
[356704665,1742993445141,-799.34,0.0001403,2]
[356704666,1742993445150,-500.0,0.0001403,2]
[356704667,1742993445160,-1900.52,0.0001403,2]
[356704668,1742993445169,-500.0,0.00014152,2]
[356704669,1742993445178,-799.34,0.00014304,2]
[356704670,1742993445189,-500.0,0.00014304,2]
[356704671,1742993445198,-1900.52,0.00014304,2]
[356704672,1742993445212,-151.0,0.0001452,2]
[356704673,1742993445221,-799.34,0.00014578,2]
[356704674,1742993445231,-151.0,0.00014578,2]
[356704675,1742993445241,-500.0,0.00014578,2]
[356704676,1742993445250,-1900.52,0.00014578,2]
[356704677,1742993445260,-12458.93820146,0.0001474,2]
[356704679,1742993445269,-160.0,0.00014752,2]
[356704681,1742993445278,-420.0,0.00014777,2]
[356704682,1742993445288,-151.0,0.00014788,2]
[356704683,1742993445298,-151.0,0.00014788,2]
[356704684,1742993445307,-248.373274,0.00014788,2]
[356704685,1742993445316,-799.34,0.00014852,2]
[356704686,1742993445326,-500.0,0.00014852,2]
[356704687,1742993445335,-1900.52,0.00014852,2]
[356704688,1742993445345,-571.0830491,0.000149,2]
[356704689,1742993445354,-193.25285177,0.000149,2]
[356704690,1742993445364,-193.25285175,0.000149,2]
[356704691,1742993445373,-193.25285175,0.000149,2]
[356704692,1742993445382,-799.34,0.00015126,2]
[356704693,1742993445392,-500.0,0.00015126,2]
[356704694,1742993445401,-1900.52,0.00015126,2]
[356704695,1742993445411,-500.0,0.0001518,2]
[356704696,1742993445420,-956.0,0.0001524,2]
[356704697,1742993445429,-500.0,0.00015249,2]
[356704698,1742993445438,-30028.75097276,0.0001525,2]
[356704699,1742993445448,-151.0,0.0001525,2]
[356704700,1742993445456,-262.54212,0.0001525,2]
[356704701,1742993445465,-151.0,0.0001525,2]
[356704702,1742993445475,-151.0,0.0001525,2]
[356704703,1742993445484,-1709.52792305,0.00015361,2]
[356704704,1742993445494,-799.34,0.000154,2]
[356704705,1742993445503,-409.93,0.000154,2]
[356704706,1742993445512,-1900.52,0.000154,2]
[356704707,1742993445522,-709.17086216,0.000155,2]
[356704708,1742993445531,-500.0,0.00015522,2]
[356704709,1742993445540,-799.34,0.00015674,2]
[356704710,1742993445549,-1900.52,0.00015674,2]
[356704711,1742993445558,-252.759,0.00015689,2]
[356704712,1742993445567,-799.34,0.00015948,2]
[356704713,1742993445577,-1900.52,0.00015948,2]
[356704714,1742993445585,-9378.42396914,0.00016,2]
[356704715,1742993445595,-151.0,0.00016046,2]
[356704716,1742993445604,-500.65341995,0.00016046,2]
[356704717,1742993445613,-500.0,0.00016046,2]
[356704718,1742993445622,-500.0,0.00016046,2]
[356704719,1742993445631,-355.0,0.00016198,2]
[356704720,1742993445641,-150.0,0.00016218,2]
[356704721,1742993445649,-799.34,0.00016222,2]
[356704722,1742993445659,-1900.52,0.00016222,2]
[356704723,1742993445668,-151.0,0.00016238,2]
[356704724,1742993445677,-151.0,0.00016345,2]
[356704725,1742993445687,-293.94734589,0.00016437,2]
[356704726,1742993445696,-500.0,0.00016438,2]
[356704727,1742993445705,-500.0,0.00016438,2]
[356704728,1742993445714,-500.0,0.00016438,2]
[356704729,1742993445724,-500.0,0.00016438,2]
[356704730,1742993445732,-500.0,0.00016438,2]
[356704731,1742993445742,-500.0,0.00016438,2]
[356704732,1742993445753,-502.45261492,0.00016438,2]
[356704733,1742993445762,-151.0,0.00016438,2]
[356704734,1742993445771,-151.0,0.00016438,2]
[356704735,1742993445781,-1012.87,0.00016438,7]
[356704736,1742993445792,-1012.87,0.00016438,7]
[356704737,1742993445800,-1012.87,0.00016438,7]
[356704738,1742993445810,-1012.87,0.00016438,7]
[356704739,1742993445820,-1012.87,0.00016438,7]
[356704740,1742993445829,-1012.87,0.00016438,7]
[356704741,1742993445839,-1012.87,0.00016438,7]
[356704742,1742993445848,-1012.87,0.00016438,7]
[356704743,1742993445857,-1012.87,0.00016438,7]
[356704744,1742993445866,-1012.87,0.00016438,7]
[356704745,1742993445876,-1012.87,0.00016438,7]
[356704746,1742993445885,-1012.87,0.00016438,7]
[356704747,1742993445895,-1012.87,0.00016438,7]
[356704748,1742993445904,-1012.87,0.00016438,7]
[356704749,1742993445914,-1012.87,0.00016438,7]
[356704750,1742993445924,-1012.87,0.00016438,7]
[356704751,1742993445934,-1012.87,0.00016438,7]
[356704752,1742993445943,-1012.87,0.00016438,7]
[356704753,1742993445952,-1012.87,0.00016438,7]
[356704754,1742993445961,-239.80269622,0.00016438,2]
[356704755,1742993445971,-2073.8742679,0.00016438,2]
[356704756,1742993445980,-151.0,0.00016438,2]
[356704757,1742993445989,-151.0,0.00016438,2]
[356704758,1742993445998,-151.0,0.00016438,2]
[356704759,1742993446008,-151.0,0.00016438,2]
[356704760,1742993446016,-151.0,0.00016438,2]
[356704761,1742993446026,-151.0,0.00016438,2]
[356704762,1742993446035,-151.0,0.00016438,2]
[356704763,1742993446044,-151.0,0.00016438,2]